[Event "Biel Main Tournament 2019"]
[Site "Biel"]
[Date "2019.07.22"]
[Round "1.1"]
[White "Novalic, Miralem"]
[Black "Dharani Srinivas Korapati Babu"]
[Result "1-0"]
[ECO "D02"]
[WhiteElo "2010"]
[BlackElo "1690"]
[Annotator "NA"]
[PlyCount "77"]
[EventDate "2019.07.20"]
[EventType "swiss"]
[EventCountry "SUI"]
[SourceTitle "playchess.com"]
[Source "ChessBase"]
[SourceQuality "1"]
[TimeControl "40/5400+30:1800+30"]

1. d4 {[%emt 0:00:00]} Nf6 {[%emt 0:00:00]} 2. Bf4 {[%emt 0:00:00]} g6 {[%emt 0:00:13]} 3. Nf3 {[%emt 0:00:13]} Bg7 {[%emt 0:00:41]} 4. Nbd2 {[%emt 0:01:35]} d5 {[%emt 0:03:50]} 5. h3 {[%emt 0:00:25]} O-O {[%emt 0:01:47]} 6. e3 {[%emt 0:01:05]} Nbd7 {[%emt 0:06:01]} 7. Bd3 {[%emt 0:00:45]} c5 {[%emt 0:02:38]} 8. c4 {[%emt 0:01:15]} cxd4 {[%emt 0:10:50]} 9. exd4 {[%emt 0:00:20]} dxc4 {[%emt 0:06:58]} 10. Nxc4 {[%emt 0:01:25]} Nd5 {[%emt 0:02:27]} 11. Bd2 {[%emt 0:01:44]} b6 {[%emt 0:06:18]} 12. O-O {[%emt 0:00:50]} Bb7 {[%emt 0:00:48]} 13. Rc1 {[%emt 0:00:48]} Re8 {[%emt 0:07:23]} 14. Re1 {[%emt 0:00:20]} Rc8 {[%emt 0:05:12]} 15. Qe2 {[%emt 0:03:11]} e5 {[%emt 0:18:59]} 16. Nd6 {[%emt 0:03:09]} Rxc1 {[%emt 0:02:16]} 17. Bxc1 {[%emt 0:01:37]} Re6 {[%emt 0:00:38]} 18. Nxb7 {[%emt 0:00:22]} Qc7 {[%emt 0:01:21]} 19. Ba6 {[%emt 0:10:10]} exd4 {[%emt 0:04:07]} 20. Qc4 {[%emt 0:00:39]} b5 {[%emt 0:05:41]} 21. Qxd5 {[%emt 0:03:08]} Rxe1+ {[%emt 0:00:34]} 22. Nxe1 {[%emt 0:00:12]} Qxc1 {[%emt 0:01:02]} 23. Kf1 {[%emt 0:00:21]} Nb6 {[%emt 0:06:29]} 24. Qd8+ {[%emt 0:03:45]} Bf8 {[%emt 0:00:02]} 25. Qxd4 {[%emt 0:00:55]} Nc4 {[%emt 0:01:21]} 26. Bxb5 {[%emt 0:00:57]} Bb4 {[%emt 0:01:19]} 27. Qd8+ {[%emt 0:02:36]} Kg7 {[%emt 0:00:02]} 28. Qe8 {[%emt 0:01:03]} Bd2 {[%emt 0:01:34]} 29. Bxc4 {[%emt 0:01:17]} Qxc4+ {[%emt 0:00:02]} 30. Qe2 {[%emt 0:01:32]} Qc1 {[%emt 0:02:07]} 31. Nd6 {[%emt 0:02:48]} Bxe1 {[%emt 0:01:00]} 32. Qxe1 {[%emt 0:00:16]} Qxb2 {[%emt 0:00:09]} 33. g4 {[%emt 0:00:58]} Qxa2 {[%emt 0:01:37]} 34. Qe5+ {[%emt 0:00:25]} Kg8 {[%emt 0:00:02]} 35. Ne8 {[%emt 0:01:10]} Kf8 {[%emt 0:01:21]} 36. Nf6 {[%emt 0:00:13]} Qb1+ {[%emt 0:00:36]} 37. Kg2 {[%emt 0:00:24]} h5 {[%emt 0:00:26]} 38. Qe8+ {[%emt 0:01:41]} Kg7 {[%emt 0:00:02]} 39. g5 {[%emt 0:00:22]} 1-0

[Event "Biel Main Tournament 2019"]
[Site "Biel"]
[Date "2019.07.22"]
[Round "1.2"]
[White "Lehmann, Daniel"]
[Black "Schneuwly, Achim"]
[Result "0-1"]
[ECO "A43"]
[WhiteElo "1685"]
[BlackElo "1984"]
[Annotator "NA"]
[PlyCount "72"]
[EventDate "2019.07.20"]
[EventType "swiss"]
[EventCountry "SUI"]
[SourceTitle "playchess.com"]
[Source "ChessBase"]
[SourceQuality "1"]
[TimeControl "40/5400+30:1800+30"]

1. d4 {[%emt 0:00:00]} c5 {[%emt 0:00:04]} 2. d5 {[%emt 0:00:03]} e6 {[%emt 0:00:06]} 3. c4 {[%emt 0:00:35]} exd5 {[%emt 0:00:05]} 4. cxd5 {[%emt 0:00:14]} d6 {[%emt 0:00:07]} 5. Nc3 {[%emt 0:00:25]} Ne7 {[%emt 0:00:10]} 6. e4 {[%emt 0:00:37]} Ng6 {[%emt 0:00:06]} 7. f4 {[%emt 0:00:56]} Be7 {[%emt 0:00:08]} 8. Nf3 {[%emt 0:00:27]} Bf6 {[%emt 0:00:04]} 9. Bd3 {[%emt 0:02:55]} O-O {[%emt 0:00:08]} 10. O-O {[%emt 0:01:04]} Re8 {[%emt 0:00:17]} 11. Bd2 {[%emt 0:06:30]} a6 {[%emt 0:00:11]} 12. a4 {[%emt 0:00:12]} b6 {[%emt 0:01:35]} 13. Qc2 {[%emt 0:04:12]} Nd7 {[%emt 0:00:23]} 14. Rae1 {[%emt 0:00:44]} Rb8 {[%emt 0:01:25]} 15. b3 {[%emt 0:06:59]} Qc7 {[%emt 0:06:24]} 16. Kh1 {[%emt 0:06:57]} c4 {[%emt 0:34:12]} 17. bxc4 {[%emt 0:02:16]} Nc5 {[%emt 0:00:09]} 18. e5 {[%emt 0:00:46]} dxe5 {[%emt 0:03:00]} 19. Bxg6 {[%emt 0:13:45]} hxg6 {[%emt 0:00:10]} 20. fxe5 {[%emt 0:05:38]} Bf5 {[%emt 0:07:21]} 21. Qa2 {[%emt 0:04:32]} Bd8 {[%emt 0:03:51]} 22. Nd4 {[%emt 0:04:25]} Bd3 {[%emt 0:05:05]} 23. Rf3 {[%emt 0:02:50]} Rc8 {[%emt 0:15:05]} 24. Ree3 {[%emt 0:02:36]} Bg5 {[%emt 0:09:21]} 25. Rxd3 {[%emt 0:01:28]} Qxe5 {[%emt 0:00:38]} 26. Nde2 {[%emt 0:05:47]} Nxd3 {[%emt 0:00:29]} 27. Bxg5 {[%emt 0:01:24]} Qxc3 {[%emt 0:00:48]} 28. Bh4 {[%emt 0:10:23]} Qxc4 {[%emt 0:03:46]} 29. Qd2 {[%emt 0:10:03]} Qxh4 {[%emt 0:05:27]} 30. Rxd3 {[%emt 0:00:07]} Qe4 {[%emt 0:01:04]} 31. Ng1 {[%emt 0:01:03]} Rcd8 {[%emt 0:00:48]} 32. d6 {[%emt 0:00:35]} Qe1 {[%emt 0:01:02]} 33. Qa2 {[%emt 0:01:25]} Qe6 {[%emt 0:00:30]} 34. Qd2 {[%emt 0:01:09]} Rd7 {[%emt 0:00:54]} 35. Nf3 {[%emt 0:00:50]} Red8 {[%emt 0:00:17]} 36. Ng5 {[%emt 0:01:04]} Qf6 {[%emt 0:00:37]} 0-1

[Event "Biel Main Tournament 2019"]
[Site "Biel"]
[Date "2019.07.22"]
[Round "1.3"]
[White "Esper, Christian"]
[Black "Rohde, Bernhard"]
[Result "1/2-1/2"]
[ECO "C07"]
[WhiteElo "1979"]
[BlackElo "1681"]
[Annotator "NA"]
[PlyCount "75"]
[EventDate "2019.07.20"]
[EventType "swiss"]
[EventCountry "SUI"]
[SourceTitle "playchess.com"]
[Source "ChessBase"]
[SourceQuality "1"]
[TimeControl "40/5400+30:1800+30"]

1. e4 {[%emt 0:00:00]} e6 {[%emt 0:00:00]} 2. d4 {[%emt 0:00:33]} d5 {[%emt 0:00:00]} 3. Nd2 {[%emt 0:00:33]} c5 {[%emt 0:01:01]} 4. c3 {[%emt 0:02:19]} Nc6 {[%emt 0:00:36]} 5. Ngf3 {[%emt 0:03:40]} Qb6 {[%emt 0:02:28]} 6. exd5 {[%emt 0:07:28]} exd5 {[%emt 0:00:49]} 7. Nb3 {[%emt 0:02:13]} c4 {[%emt 0:00:51]} 8. Nbd2 {[%emt 0:00:24]} Nf6 {[%emt 0:02:35]} 9. b3 {[%emt 0:02:27]} cxb3 {[%emt 0:01:30]} 10. Qxb3 {[%emt 0:01:10]} Qxb3 {[%emt 0:01:15]} 11. axb3 {[%emt 0:00:26]} Bd6 {[%emt 0:03:28]} 12. Bd3 {[%emt 0:05:19]} h6 {[%emt 0:03:04]} 13. O-O {[%emt 0:04:48]} O-O {[%emt 0:00:44]} 14. Re1 {[%emt 0:06:27]} Be6 {[%emt 0:03:29]} 15. Ne5 {[%emt 0:07:44]} Nd7 {[%emt 0:07:11]} 16. f4 {[%emt 0:03:44]} Ndxe5 {[%emt 0:04:46]} 17. fxe5 {[%emt 0:01:28]} Be7 {[%emt 0:00:50]} 18. Nf3 {[%emt 0:03:18]} Rfc8 {[%emt 0:01:30]} 19. Bd2 {[%emt 0:02:42]} a6 {[%emt 0:01:12]} 20. Ra2 {[%emt 0:04:17]} Bd8 {[%emt 0:04:11]} 21. b4 {[%emt 0:07:53]} Na7 {[%emt 0:04:41]} 22. Rc1 {[%emt 0:04:31]} Bb6 {[%emt 0:07:41]} 23. Kf1 {[%emt 0:05:21]} Rc6 {[%emt 0:00:52]} 24. b5 {[%emt 0:01:24]} axb5 {[%emt 0:02:04]} 25. Bxb5 {[%emt 0:00:27]} Rcc8 {[%emt 0:00:42]} 26. Rca1 {[%emt 0:01:13]} g5 {[%emt 0:02:45]} 27. Ne1 {[%emt 0:02:19]} f5 {[%emt 0:01:29]} 28. Nd3 {[%emt 0:04:32]} f4 {[%emt 0:05:24]} 29. Ra3 {[%emt 0:00:49]} Bg4 {[%emt 0:04:59]} 30. h3 {[%emt 0:00:55]} Bf5 {[%emt 0:01:42]} 31. Nb4 {[%emt 0:01:27]} Be6 {[%emt 0:05:28]} 32. Be2 {[%emt 0:00:49]} Kf8 {[%emt 0:04:37]} 33. Bf3 {[%emt 0:00:25]} Rd8 {[%emt 0:01:32]} 34. Nd3 {[%emt 0:00:53]} Rdc8 {[%emt 0:05:12]} 35. Nc5 {[%emt 0:01:40]} Rxc5 {[%emt 0:00:22]} 36. dxc5 {[%emt 0:01:23]} Bxc5 {[%emt 0:00:10]} 37. Ra5 {[%emt 0:00:56]} Be3 {[%emt 0:05:53]} 38. Bxe3 {[%emt 0:00:55]} 1/2-1/2

[Event "Biel Main Tournament 2019"]
[Site "Biel"]
[Date "2019.07.22"]
[Round "1.4"]
[White "Roth, Daniel"]
[Black "Sudan, Georges"]
[Result "0-1"]
[ECO "C02"]
[WhiteElo "1879"]
[BlackElo "1978"]
[Annotator "NA"]
[PlyCount "52"]
[EventDate "2019.07.20"]
[EventType "swiss"]
[EventCountry "SUI"]
[SourceTitle "playchess.com"]
[Source "ChessBase"]
[SourceQuality "1"]
[TimeControl "40/5400+30:1800+30"]

1. e4 {[%emt 0:00:13]} e6 {[%emt 0:01:13]} 2. d4 {[%emt 0:01:08]} d5 {[%emt 0:00:01]} 3. e5 {[%emt 0:00:31]} c5 {[%emt 0:00:08]} 4. Nf3 {[%emt 0:00:41]} Nc6 {[%emt 0:00:07]} 5. c3 {[%emt 0:02:18]} Qb6 {[%emt 0:01:05]} 6. Be2 {[%emt 0:01:23]} Bd7 {[%emt 0:03:44]} 7. O-O {[%emt 0:00:30]} cxd4 {[%emt 0:00:25]} 8. cxd4 {[%emt 0:02:32]} Nge7 {[%emt 0:00:23]} 9. Nc3 {[%emt 0:01:20]} Nf5 {[%emt 0:00:36]} 10. Na4 {[%emt 0:07:11]} Qd8 {[%emt 0:25:49]} 11. Bg5 {[%emt 0:30:20]} Be7 {[%emt 0:11:09]} 12. Bxe7 {[%emt 0:07:50]} Qxe7 {[%emt 0:00:02]} 13. Rc1 {[%emt 0:01:32]} Rc8 {[%emt 0:07:34]} 14. Bb5 {[%emt 0:02:56]} b6 {[%emt 0:08:18]} 15. Rc2 {[%emt 0:03:10]} O-O {[%emt 0:01:29]} 16. Qd2 {[%emt 0:05:32]} Nxe5 {[%emt 0:01:10]} 17. Bxd7 {[%emt 0:11:19]} Nxf3+ {[%emt 0:00:20]} 18. gxf3 {[%emt 0:00:30]} Qxd7 {[%emt 0:00:20]} 19. Nc3 {[%emt 0:00:01]} Qe7 {[%emt 0:00:24]} 20. Rfc1 {[%emt 0:01:20]} Rc4 {[%emt 0:08:45]} 21. Ne2 {[%emt 0:03:41]} Rfc8 {[%emt 0:00:16]} 22. Kh1 {[%emt 0:07:05]} Qh4 {[%emt 0:07:29]} 23. Nf4 {[%emt 0:02:35]} g6 {[%emt 0:06:35]} 24. Rxc4 {[%emt 0:04:07]} dxc4 {[%emt 0:00:14]} 25. d5 {[%emt 0:01:36]} e5 {[%emt 0:04:19]} 26. Ng2 {[%emt 0:00:44]} Qd4 {[%emt 0:00:31]} 0-1

[Event "Biel Main Tournament 2019"]
[Site "Biel"]
[Date "2019.07.22"]
[Round "1.5"]
[White "Deubelbeiss, Rene"]
[Black "Loeffler, Helmut"]
[Result "1/2-1/2"]
[ECO "A13"]
[WhiteElo "1972"]
[BlackElo "1668"]
[Annotator "NA"]
[PlyCount "48"]
[EventDate "2019.07.20"]
[EventType "swiss"]
[EventCountry "SUI"]
[SourceTitle "playchess.com"]
[Source "ChessBase"]
[SourceQuality "1"]
[TimeControl "40/5400+30:1800+30"]

1. c4 {[%emt 0:03:44]} e6 {[%emt 0:00:00]} 2. g3 {[%emt 0:00:16]} Nf6 {[%emt 0:00:42]} 3. Bg2 {[%emt 0:00:09]} Be7 {[%emt 0:01:02]} 4. Nf3 {[%emt 0:01:19]} Nc6 {[%emt 0:01:26]} 5. O-O {[%emt 0:03:03]} O-O {[%emt 0:00:59]} 6. b3 {[%emt 0:09:27]} d5 {[%emt 0:03:18]} 7. Bb2 {[%emt 0:00:26]} d4 {[%emt 0:05:07]} 8. d3 {[%emt 0:00:05]} e5 {[%emt 0:02:38]} 9. a3 {[%emt 0:00:14]} a5 {[%emt 0:02:58]} 10. h3 {[%emt 0:01:52]} Re8 {[%emt 0:08:50]} 11. Kh2 {[%emt 0:03:11]} h6 {[%emt 0:03:12]} 12. Nbd2 {[%emt 0:15:48]} Bf5 {[%emt 0:03:03]} 13. Ne1 {[%emt 0:07:52]} Qd7 {[%emt 0:05:58]} 14. Ne4 {[%emt 0:02:55]} Nxe4 {[%emt 0:03:53]} 15. dxe4 {[%emt 0:00:07]} Bg6 {[%emt 0:01:00]} 16. Qd2 {[%emt 0:16:04]} Rad8 {[%emt 0:04:23]} 17. Nd3 {[%emt 0:01:49]} b6 {[%emt 0:04:22]} 18. b4 {[%emt 0:01:44]} axb4 {[%emt 0:04:46]} 19. axb4 {[%emt 0:00:20]} Qe6 {[%emt 0:02:16]} 20. Rac1 {[%emt 0:05:02]} Rf8 {[%emt 0:09:04]} 21. f4 {[%emt 0:05:58]} exf4 {[%emt 0:03:47]} 22. Nxf4 {[%emt 0:00:28]} Qe5 {[%emt 0:03:52]} 23. Nxg6 {[%emt 0:03:11]} fxg6 {[%emt 0:00:41]} 24. c5 {[%emt 0:06:58]} bxc5 {[%emt 0:03:45]} 1/2-1/2

[Event "Biel Main Tournament 2019"]
[Site "Biel"]
[Date "2019.07.22"]
[Round "1.6"]
[White "Trachsel, Peter"]
[Black "Meinecke, Florian"]
[Result "1/2-1/2"]
[ECO "A13"]
[WhiteElo "1683"]
[BlackElo "1968"]
[Annotator "NA"]
[PlyCount "77"]
[EventDate "2019.07.20"]
[EventType "swiss"]
[EventCountry "SUI"]
[SourceTitle "playchess.com"]
[Source "ChessBase"]
[SourceQuality "1"]
[TimeControl "40/5400+30:1800+30"]

1. c4 {[%emt 0:00:00]} e6 {[%emt 0:01:14]} 2. Nc3 {[%emt 0:00:00]} e5 {[%emt 0:00:30]} 3. Nf3 {[%emt 0:00:42]} Nc6 {[%emt 0:00:24]} 4. e3 {[%emt 0:01:16]} Bc5 {[%emt 0:01:36]} 5. Be2 {[%emt 0:02:32]} d6 {[%emt 0:03:06]} 6. d3 {[%emt 0:02:42]} Bf5 {[%emt 0:05:19]} 7. b3 {[%emt 0:05:22]} a6 {[%emt 0:03:27]} 8. Bb2 {[%emt 0:02:45]} Nf6 {[%emt 0:05:15]} 9. a3 {[%emt 0:05:30]} Ba7 {[%emt 0:04:34]} 10. O-O {[%emt 0:01:02]} O-O {[%emt 0:10:05]} 11. h3 {[%emt 0:05:18]} Bg4 {[%emt 0:00:01]} 12. Nh4 {[%emt 0:10:56]} Bxe2 {[%emt 0:00:59]} 13. Qxe2 {[%emt 0:02:42]} Qd7 {[%emt 0:08:16]} 14. Nf3 {[%emt 0:02:04]} Rfe8 {[%emt 0:03:25]} 15. Rad1 {[%emt 0:05:12]} Rad8 {[%emt 0:02:50]} 16. Nd2 {[%emt 0:06:39]} Ne7 {[%emt 0:08:37]} 17. Nde4 {[%emt 0:01:33]} Nxe4 {[%emt 0:02:55]} 18. dxe4 {[%emt 0:01:26]} Rf8 {[%emt 0:05:27]} 19. Bc1 {[%emt 0:06:06]} Qe6 {[%emt 0:01:59]} 20. Nd5 {[%emt 0:03:18]} c6 {[%emt 0:01:39]} 21. Nxe7+ {[%emt 0:01:30]} Qxe7 {[%emt 0:00:02]} 22. Rd3 {[%emt 0:01:22]} Qh4 {[%emt 0:04:51]} 23. Qg4 {[%emt 0:06:20]} Qxg4 {[%emt 0:03:09]} 24. hxg4 {[%emt 0:00:10]} Rd7 {[%emt 0:00:31]} 25. Rfd1 {[%emt 0:00:37]} Rfd8 {[%emt 0:00:26]} 26. Kf1 {[%emt 0:02:04]} f6 {[%emt 0:03:14]} 27. Ke2 {[%emt 0:01:03]} Kf7 {[%emt 0:00:43]} 28. a4 {[%emt 0:02:20]} Bc5 {[%emt 0:05:26]} 29. Bd2 {[%emt 0:00:49]} Ke6 {[%emt 0:02:00]} 30. Ba5 {[%emt 0:02:21]} b6 {[%emt 0:01:37]} 31. Bc3 {[%emt 0:02:04]} d5 {[%emt 0:01:05]} 32. cxd5+ {[%emt 0:01:01]} cxd5 {[%emt 0:00:09]} 33. exd5+ {[%emt 0:00:39]} Rxd5 {[%emt 0:00:09]} 34. b4 {[%emt 0:03:57]} Rxd3 {[%emt 0:04:29]} 35. Rxd3 {[%emt 0:00:12]} Be7 {[%emt 0:00:10]} 36. Rxd8 {[%emt 0:00:16]} Bxd8 {[%emt 0:00:01]} 37. Kd3 {[%emt 0:04:40]} b5 {[%emt 0:01:14]} 38. axb5 {[%emt 0:01:30]} axb5 {[%emt 0:00:03]} 39. e4 {[%emt 0:02:15]} 1/2-1/2

[Event "Biel Main Tournament 2019"]
[Site "Biel"]
[Date "2019.07.22"]
[Round "1.7"]
[White "Brauchli, Joerg"]
[Black "Del Val, Moise"]
[Result "1-0"]
[ECO "D05"]
[WhiteElo "1965"]
[BlackElo "1661"]
[Annotator "NA"]
[PlyCount "137"]
[EventDate "2019.07.20"]
[EventType "swiss"]
[EventCountry "SUI"]
[SourceTitle "playchess.com"]
[Source "ChessBase"]
[SourceQuality "1"]
[TimeControl "40/5400+30:1800+30"]

1. d4 {[%emt 0:00:00]} Nf6 {[%emt 0:00:00]} 2. Nf3 {[%emt 0:00:00]} e6 {[%emt 0:00:00]} 3. e3 {[%emt 0:00:14]} d5 {[%emt 0:00:11]} 4. Bd3 {[%emt 0:00:13]} c5 {[%emt 0:00:24]} 5. b3 {[%emt 0:00:15]} Nc6 {[%emt 0:00:36]} 6. a3 {[%emt 0:00:10]} Be7 {[%emt 0:01:17]} 7. Nbd2 {[%emt 0:00:36]} O-O {[%emt 0:00:59]} 8. O-O {[%emt 0:00:14]} h6 {[%emt 0:02:18]} 9. Bb2 {[%emt 0:00:12]} cxd4 {[%emt 0:01:59]} 10. exd4 {[%emt 0:00:12]} a6 {[%emt 0:04:19]} 11. Ne5 {[%emt 0:02:57]} Bd7 {[%emt 0:06:23]} 12. f4 {[%emt 0:02:02]} Qb6 {[%emt 0:09:06]} 13. Ndf3 {[%emt 0:08:31]} Rad8 {[%emt 0:05:13]} 14. Qe2 {[%emt 0:04:46]} Bc8 {[%emt 0:04:52]} 15. Kh1 {[%emt 0:05:33]} Bd6 {[%emt 0:03:16]} 16. Rad1 {[%emt 0:02:18]} Qa5 {[%emt 0:05:13]} 17. g4 {[%emt 0:01:29]} Bxe5 {[%emt 0:05:29]} 18. Nxe5 {[%emt 0:03:29]} Ne4 {[%emt 0:04:33]} 19. Nxc6 {[%emt 0:05:46]} bxc6 {[%emt 0:00:10]} 20. Bxe4 {[%emt 0:00:08]} dxe4 {[%emt 0:00:10]} 21. Qxe4 {[%emt 0:00:12]} Qd5 {[%emt 0:00:40]} 22. Qg2 {[%emt 0:03:13]} Qxg2+ {[%emt 0:02:33]} 23. Kxg2 {[%emt 0:00:13]} f5 {[%emt 0:01:43]} 24. h3 {[%emt 0:02:36]} Rf7 {[%emt 0:02:41]} 25. Kg3 {[%emt 0:04:35]} g5 {[%emt 0:07:41]} 26. Rde1 {[%emt 0:02:37]} fxg4 {[%emt 0:03:50]} 27. hxg4 {[%emt 0:00:27]} gxf4+ {[%emt 0:07:16]} 28. Rxf4 {[%emt 0:00:37]} Rxf4 {[%emt 0:01:07]} 29. Kxf4 {[%emt 0:00:05]} Kf7 {[%emt 0:01:15]} 30. c4 {[%emt 0:08:09]} Kg6 {[%emt 0:04:12]} 31. Kg3 {[%emt 0:01:40]} h5 {[%emt 0:02:23]} 32. Re5 {[%emt 0:02:16]} hxg4 {[%emt 0:00:21]} 33. Kxg4 {[%emt 0:00:12]} Kf7 {[%emt 0:00:32]} 34. Kf4 {[%emt 0:01:21]} Ke7 {[%emt 0:01:42]} 35. Rh5 {[%emt 0:05:33]} Rf8+ {[%emt 0:01:30]} 36. Ke3 {[%emt 0:00:25]} Rg8 {[%emt 0:02:50]} 37. Rh7+ {[%emt 0:05:44]} Kd8 {[%emt 0:00:28]} 38. Kf4 {[%emt 0:01:07]} Bd7 {[%emt 0:00:45]} 39. Bc3 {[%emt 0:01:05]} Kc7 {[%emt 0:04:15]} 40. Ba5+ {[%emt 0:00:24]} Kc8 {[%emt 0:00:14]} 41. Bb6 {[%emt 0:30:58]} Kb7 {[%emt 0:05:54]} 42. Rxd7+ {[%emt 0:00:00]} Kxb6 {[%emt 0:00:03]} 43. Rd6 {[%emt 0:00:00]} Rf8+ {[%emt 0:02:10]} 44. Ke4 {[%emt 0:00:00]} Rf1 {[%emt 0:03:09]} 45. Rxe6 {[%emt 0:00:00]} Re1+ {[%emt 0:01:34]} 46. Kf5 {[%emt 0:00:00]} Rf1+ {[%emt 0:00:22]} 47. Kg4 {[%emt 0:00:00]} Kc7 {[%emt 0:00:41]} 48. d5 {[%emt 0:00:00]} cxd5 {[%emt 0:00:24]} 49. cxd5 {[%emt 0:00:00]} Rd1 {[%emt 0:02:14]} 50. Rxa6 {[%emt 0:00:00]} Rxd5 {[%emt 0:00:03]} 51. Kf4 {[%emt 0:00:00]} Rd1 {[%emt 0:00:22]} 52. Ke4 {[%emt 0:00:00]} Kb7 {[%emt 0:00:13]} 53. Ra5 {[%emt 0:00:00]} Kb6 {[%emt 0:01:05]} 54. Rd5 {[%emt 0:00:00]} Rh1 {[%emt 0:03:39]} 55. a4 {[%emt 0:00:00]} Rh4+ {[%emt 0:01:03]} 56. Kd3 {[%emt 0:00:00]} Ka6 {[%emt 0:00:59]} 57. Kc3 {[%emt 0:00:00]} Rg4 {[%emt 0:00:40]} 58. b4 {[%emt 0:00:00]} Rh4 {[%emt 0:02:07]} 59. Rd6+ {[%emt 0:00:00]} Kb7 {[%emt 0:00:14]} 60. a5 {[%emt 0:00:00]} Rg4 {[%emt 0:02:16]} 61. b5 {[%emt 0:00:00]} Rh4 {[%emt 0:00:31]} 62. Rd4 {[%emt 0:00:00]} Rh1 {[%emt 0:00:58]} 63. Rd7+ {[%emt 0:00:00]} Kb8 {[%emt 0:00:25]} 64. Kb4 {[%emt 0:00:00]} Rc1 {[%emt 0:01:01]} 65. a6 {[%emt 0:00:00]} Rc2 {[%emt 0:00:17]} 66. Ka5 {[%emt 0:00:00]} Rh2 {[%emt 0:00:19]} 67. Rb7+ {[%emt 0:00:42]} Ka8 {[%emt 0:00:14]} 68. Rc7 {[%emt 0:01:23]} Rh1 {[%emt 0:06:11]} 69. Rc8+ {[%emt 0:00:16]} 1-0

[Event "Biel Main Tournament 2019"]
[Site "Biel"]
[Date "2019.07.22"]
[Round "1.8"]
[White "Suwendo, Poedjo"]
[Black "Svensson, Erik"]
[Result "1/2-1/2"]
[ECO "C58"]
[WhiteElo "1659"]
[BlackElo "1963"]
[Annotator "NA"]
[PlyCount "82"]
[EventDate "2019.07.20"]
[EventType "swiss"]
[EventCountry "SUI"]
[SourceTitle "playchess.com"]
[Source "ChessBase"]
[SourceQuality "1"]
[TimeControl "40/5400+30:1800+30"]

1. e4 {[%emt 0:01:59]} e5 {[%emt 0:00:00]} 2. Nf3 {[%emt 0:00:11]} Nc6 {[%emt 0:00:04]} 3. Bc4 {[%emt 0:00:14]} Nf6 {[%emt 0:00:10]} 4. Ng5 {[%emt 0:01:00]} d5 {[%emt 0:00:31]} 5. exd5 {[%emt 0:00:10]} Na5 {[%emt 0:00:25]} 6. Bb5+ {[%emt 0:00:23]} Bd7 {[%emt 0:00:18]} 7. Qe2 {[%emt 0:03:05]} Be7 {[%emt 0:00:55]} 8. Bxd7+ {[%emt 0:00:42]} Qxd7 {[%emt 0:03:25]} 9. b4 {[%emt 0:09:17]} Bxb4 {[%emt 0:02:23]} 10. Qxe5+ {[%emt 0:00:34]} Qe7 {[%emt 0:27:51]} 11. Qxe7+ {[%emt 0:05:25]} Bxe7 {[%emt 0:02:38]} 12. Nc3 {[%emt 0:02:21]} Rd8 {[%emt 0:02:32]} 13. Nge4 {[%emt 0:06:11]} Nxd5 {[%emt 0:02:31]} 14. Nxd5 {[%emt 0:02:03]} Rxd5 {[%emt 0:00:42]} 15. O-O {[%emt 0:00:24]} Nc4 {[%emt 0:06:23]} 16. Re1 {[%emt 0:03:41]} Kd8 {[%emt 0:09:58]} 17. Rb1 {[%emt 0:16:17]} b6 {[%emt 0:01:40]} 18. Rb3 {[%emt 0:02:46]} a5 {[%emt 0:09:40]} 19. Rg3 {[%emt 0:04:41]} g6 {[%emt 0:06:09]} 20. d3 {[%emt 0:10:43]} Nd6 {[%emt 0:04:56]} 21. Nxd6 {[%emt 0:13:16]} Bxd6 {[%emt 0:01:54]} 22. Bg5+ {[%emt 0:06:33]} Kd7 {[%emt 0:01:19]} 23. f4 {[%emt 0:00:11]} Rf5 {[%emt 0:04:51]} 24. Rf3 {[%emt 0:01:08]} h5 {[%emt 0:01:27]} 25. Bh4 {[%emt 0:04:50]} Bxf4 {[%emt 0:05:06]} 26. Ref1 {[%emt 0:00:44]} Be5 {[%emt 0:02:08]} 27. Rxf5 {[%emt 0:00:08]} gxf5 {[%emt 0:00:07]} 28. Rxf5 {[%emt 0:00:08]} Ke6 {[%emt 0:00:15]} 29. Rf1 {[%emt 0:00:26]} Rg8 {[%emt 0:01:07]} 30. Re1 {[%emt 0:00:10]} Kd5 {[%emt 0:00:51]} 31. Bf2 {[%emt 0:00:18]} Rg4 {[%emt 0:00:44]} 32. c4+ {[%emt 0:01:24]} Kd6 {[%emt 0:00:44]} 33. c5+ {[%emt 0:00:33]} bxc5 {[%emt 0:01:29]} 34. Bxc5+ {[%emt 0:00:02]} Kd5 {[%emt 0:00:10]} 35. h3 {[%emt 0:01:02]} Ra4 {[%emt 0:00:27]} 36. a3 {[%emt 0:00:07]} Bc3 {[%emt 0:01:18]} 37. Rc1 {[%emt 0:00:03]} Bb2 {[%emt 0:00:29]} 38. Rc2 {[%emt 0:00:03]} Bxa3 {[%emt 0:00:25]} 39. Bxa3 {[%emt 0:00:02]} Rxa3 {[%emt 0:00:19]} 40. Rxc7 {[%emt 0:00:02]} Rxd3 {[%emt 0:00:39]} 41. Ra7 {[%emt 0:33:53]} Ke6 {[%emt 0:07:00]} 1/2-1/2

[Event "Biel Main Tournament 2019"]
[Site "Biel"]
[Date "2019.07.22"]
[Round "1.10"]
[White "Tuor, Gallus"]
[Black "Gerber, Renaud"]
[Result "0-1"]
[ECO "B06"]
[WhiteElo "1648"]
[BlackElo "1952"]
[Annotator "NA"]
[PlyCount "77"]
[EventDate "2019.07.20"]
[EventType "swiss"]
[EventCountry "SUI"]
[SourceTitle "playchess.com"]
[Source "ChessBase"]
[SourceQuality "1"]
[TimeControl "40/5400+30:1800+30"]

1. e4 {[%emt 0:00:00]} g6 {[%emt 0:00:00]} 2. d4 {[%emt 0:00:00]} Bg7 {[%emt 0:00:00]} 3. Nf3 {[%emt 0:00:07]} d6 {[%emt 0:00:00]} 4. Bc4 {[%emt 0:00:53]} e6 {[%emt 0:00:31]} 5. Nc3 {[%emt 0:00:53]} Ne7 {[%emt 0:00:47]} 6. O-O {[%emt 0:01:00]} O-O {[%emt 0:00:05]} 7. Be3 {[%emt 0:02:01]} c6 {[%emt 0:01:57]} 8. Qd2 {[%emt 0:02:25]} d5 {[%emt 0:01:19]} 9. Bd3 {[%emt 0:02:41]} dxe4 {[%emt 0:00:33]} 10. Bxe4 {[%emt 0:01:31]} Nf5 {[%emt 0:00:29]} 11. Bxf5 {[%emt 0:03:14]} exf5 {[%emt 0:00:40]} 12. Bh6 {[%emt 0:01:14]} Be6 {[%emt 0:00:54]} 13. Bxg7 {[%emt 0:00:46]} Kxg7 {[%emt 0:00:04]} 14. Rad1 {[%emt 0:01:49]} Nd7 {[%emt 0:01:26]} 15. d5 {[%emt 0:02:49]} cxd5 {[%emt 0:00:46]} 16. Nxd5 {[%emt 0:00:26]} Nf6 {[%emt 0:01:06]} 17. c4 {[%emt 0:05:02]} Bxd5 {[%emt 0:02:32]} 18. cxd5 {[%emt 0:03:05]} Qd6 {[%emt 0:00:25]} 19. Qc3 {[%emt 0:09:51]} Rac8 {[%emt 0:01:53]} 20. Qe5 {[%emt 0:00:30]} Rfd8 {[%emt 0:00:17]} 21. Rfe1 {[%emt 0:02:08]} Rc5 {[%emt 0:01:19]} 22. h3 {[%emt 0:06:35]} Rxd5 {[%emt 0:02:44]} 23. Qxd6 {[%emt 0:02:03]} R8xd6 {[%emt 0:00:11]} 24. Rc1 {[%emt 0:01:17]} Ne4 {[%emt 0:01:12]} 25. Kf1 {[%emt 0:04:21]} Nd2+ {[%emt 0:00:28]} 26. Nxd2 {[%emt 0:00:22]} Rxd2 {[%emt 0:00:04]} 27. Re2 {[%emt 0:04:03]} Rd1+ {[%emt 0:01:42]} 28. Rxd1 {[%emt 0:01:13]} Rxd1+ {[%emt 0:00:06]} 29. Re1 {[%emt 0:00:08]} Rxe1+ {[%emt 0:00:05]} 30. Kxe1 {[%emt 0:00:07]} Kf6 {[%emt 0:00:03]} 31. f4 {[%emt 0:00:52]} Ke6 {[%emt 0:00:06]} 32. Ke2 {[%emt 0:00:27]} Kd5 {[%emt 0:00:24]} 33. Kd3 {[%emt 0:00:24]} f6 {[%emt 0:00:28]} 34. h4 {[%emt 0:01:02]} h6 {[%emt 0:00:09]} 35. g3 {[%emt 0:00:52]} b5 {[%emt 0:00:23]} 36. b4 {[%emt 0:00:24]} a6 {[%emt 0:00:16]} 37. a3 {[%emt 0:00:18]} g5 {[%emt 0:00:08]} 38. h5 {[%emt 0:03:31]} g4 {[%emt 1:23:28]} 39. Kc3 {[%emt 0:39:06]} 0-1